Cogmind - Beta 13 @@@ ROGUE MODE // 2024.06.24 @ 16:55:25 Player: Lunace Result: Destroyed by 1A-17R(R) with Subdweller Machine Gun Performance ------------- Evolutions (0) 0 Regions Visited (2) 400 Robots Destroyed (9) 45 Value Destroyed (276) 276 Prototype IDs (0) 0 Alien Tech Used (0) 0 Bonus (0) 0 TOTAL SCORE: 721 Bonus ------- None Cogmind --------- Core Integrity 0/250 Matter 300/300 Energy 100/100 System Corruption 0% Temperature Cool (0) Movement Core (150) Ox2 Location -10/Subcaves Parts ------- > --- POWER (1) -------- (None) > --- PROPULSION (2) --- (None) > --- UTILITY (2) ------ Small Storage Unit > --- WEAPON (2) ------- Hammer > --- INVENTORY (8) ---- Ion Engine Subdweller Monowheel High-capacity Matter Pod (200) Light Assault Rifle Scrap Shield Fragment (48) Peak State ------------ > --- POWER ------------ Ion Engine > --- PROPULSION ------- Light Treads Light Treads > --- UTILITY ---------- Small Storage Unit Seismic Detector > --- WEAPON ----------- Light Assault Rifle Light Assault Rifle > --- INVENTORY -------- Ion Engine [Rating: 7] Favorites ----------- Power Ion Engine Engine Ion Engine Propulsion Light Treads Treads Light Treads Utility Small Storage Unit Device Seismic Detector Storage Small Storage Unit Weapon Light Assault Rifle Ballistic Gun Light Assault Rifle Impact Weapon Hammer Build | -11 -10 -10 ------- Run | Yrd Mat Sub Slots Evolved . | . . . Power . | . . . Propulsion . | . . . Utility . | . . . Weapon . | . . . Parts Attached 9 | 7 1 1 Power 2 | 1 . 1 Engine 2 | 1 . 1 Core . | . . . Reactor . | . . . Propulsion 2 | 2 . . Treads 2 | 2 . . Leg . | . . . Wheel . | . . . Hover . | . . . Flight . | . . . Utility 2 | 2 . . Device 1 | 1 . . Storage 1 | 1 . . Processor . | . . . Hackware . | . . . Protection . | . . . Artifact . | . . . Weapon 3 | 2 1 . Energy Gun . | . . . Energy Cannon . | . . . Ballistic Gun 2 | 2 . . Ballistic Cannon . | . . . Launcher . | . . . Special Weapon . | . . . Impact Weapon 1 | . 1 . Slashing Weapon . | . . . Piercing Weapon . | . . . Special Melee Weapon . | . . . Unidentified Prototypes . | . . . Parts Lost 5 | . . 5 Power 1 | . . 1 Propulsion 2 | . . 2 Utility 1 | . . 1 Weapon 1 | . . 1 Highest Loss Streak 3 | . . 3 To Critical Strikes . | . . . Average Slot Usage (%) 91 | . 100 85 Engine 14 | . 14 14 Treads 27 | . 28 27 Device 7 | . 14 4 Storage 14 | . 14 14 Ballistic Gun 13 | . 17 10 Impact Weapon 12 | . 10 14 Naked Turns . | . . . Heaviest Build 14 | 13 14 14 Greatest Support 40 | 40 40 40 Greatest Overweight (x) 3 | . . 3 Average Overweight (x) . | . . . Largest Inventory Capacity 8 | 8 8 8 Average Capacity 7 | 7 8 8 Most Carried 5 | 1 3 5 Average Carried 2 | . 2 3 Final Capacity 8 | 8 8 8 Final Carried 5 | 1 3 5 Class Distribution -------------------- 100% | Mutant Dominant Class ---------------- Mutant | -10/Materials Mutant | -10/Subcaves Resources | -11 -10 -10 ----------- Run | Yrd Mat Sub Matter Collected 492 | 220 179 93 Remotely . | . . . Salvage Created 285 | 19 179 87 Parts 10 | 2 5 3 Haulers Intercepted . | . . . Recyclers Shooed . | . . . Parts Field Recycled . | . . . Retrieved Matter . | . . . Parts Self-Destructed 6 | . . 6 Prevented . | . . . Kills | -11 -10 -10 ------- Run | Yrd Mat Sub Combat Hostiles Destroyed 7 | . 4 3 Melee 3 | . 1 2 Classes Destroyed 4 | 1 2 1 Tunneler 1 | 1 . . Mechanic 1 | . 1 . Grunt 4 | . 4 . Subdweller 3 | . . 3 Best Kill Streak 4 | 1 4 1 Combat Bots Only 3 | . 3 1 Max Kills in Single Turn 1 | 1 1 1 Gunslinging . | . . . Exploded . | . . . Melee 1 | . 1 1 Uniques/NPCs Destroyed . | . . . Combat | -11 -10 -10 -------- Run | Yrd Mat Sub Hostile Shots Fired 62 | . 13 49 Missed 16 | . 2 14 Damage Taken 842 | . 124 718 Core 251 | . 11 240 Absorbed by Shields . | . . . Core Remaining (%) 100 | 100 . . Volleys Fired 6 | 4 2 . Largest 2 | 2 2 . Hottest 40 | 40 40 . Shots Fired 12 | 8 4 . Gun 12 | 8 4 . Cannon . | . . . Launcher . | . . . Special . | . . . Kinetic 12 | 8 4 . Thermal . | . . . Explosive . | . . . Electromagnetic . | . . . Robot Hit Streak 5 | 5 1 . Robot Miss Streak 3 | 1 3 . Penetration Max . | . . . Secondary Targets . | . . . Shots Hit Robots 38 | 6 13 19 Core Hits 5 | 2 1 2 Critical Kills . | . . . Critical Parts Destroyed 6 | . 5 1 Critical Strikes 7 | . 5 2 Smash 7 | . 5 2 Melee Attacks 61 | . 20 41 Impact 61 | . 20 41 Slashing . | . . . Piercing . | . . . Sneak Attacks 4 | . 2 2 Combat Hostiles 2 | . 1 1 Follow-up Attacks . | . . . Damage Inflicted 943 | 47 356 540 Guns 56 | 47 9 . Cannons . | . . . Explosions . | . . . Melee 887 | . 347 540 Ramming . | . . . Kinetic 56 | 47 9 . Thermal . | . . . Explosive . | . . . Electromagnetic . | . . . Impact 887 | . 347 540 Slashing . | . . . Piercing . | . . . Highest Corruption . | . . . Average Corruption . | . . . Corruption Purged . | . . . Corruption Blocked . | . . . Overload Shots . | . . . Overflow Damage 206 | . 171 35 Projectiles . | . . . Explosions . | . . . Melee 206 | . 171 35 Knockbacks 9 | . 3 6 Impact 9 | . 3 6 Kinetic . | . . . Secondary . | . . . Self-Inflicted Damage . | . . . Shots . | . . . Rammed . | . . . Targets Rammed . | . . . Kicked . | . . . Crushed . | . . . Highest Temperature . | . . . Average Temperature . | . . . Received Heat Transfer 114 | . 66 48 Siege Activations . | . . . Robots Corrupted . | . . . Combat Hostiles . | . . . Parts Fried 3 | . 3 . Impact Corruptions 10 | . 7 3 Robots Melted . | . . . Combat Hostiles . | . . . Parts Melted . | . . . Heat Transferred . | . . . Parts Sabotaged . | . . . Parts Stolen . | . . . Parts Stripped . | . . . Power Chain Reactions . | . . . Alert | -11 -10 -10 ------- Run | Yrd Mat Sub Peak Influence 77 | 5 77 . Initial 3 | . 3 . Average 8 | 1 10 . Maximum Alert Level . | . . . Low Security (%) 100 | 100 100 . Level 1 . | . . . Level 2 . | . . . Level 3 . | . . . Level 4 . | . . . Level 5 . | . . . High Security . | . . . Max Security . | . . . Squads Dispatched 1 | . 1 . Investigation . | . . . Extermination . | . . . Reinforcement 1 | . 1 . Assault . | . . . Garrison . | . . . Intercept . | . . . Searches Triggered . | . . . Construction Impeded . | . . . Haulers Reinforced . | . . . Active Scanning Responses . | . . . Cargo Convoy Interrupts . | . . . Stealth | -11 -10 -10 --------- Run | Yrd Mat Sub Distress Signals 1 | . 1 . Communications Jammed . | . . . Distress Signals . | . . . Times Spotted 13 | . 7 6 Peak Tracking Total 3 | . 3 2 Tactical Retreats 1 | . 1 . Traps | -11 -10 -10 ------- Run | Yrd Mat Sub Traps Triggered . | . . . Indirectly . | . . . Trap Hack Attempts . | . . . Triggered . | . . . Disarmed . | . . . Reprogrammed . | . . . Reused . | . . . Traps Extracted . | . . . Installed . | . . . Triggered . | . . . Machines | -11 -10 -10 ---------- Run | Yrd Mat Sub Machines Disabled . | . . . Max in Single Turn . | . . . Machines Repaired . | . . . Machines Dismantled . | . . . Machines Sabotaged . | . . . Overloaded Fab Kills . | . . . Hacking | -11 -10 -10 --------- Run | Yrd Mat Sub Machines Accessed 1 | . 1 . Terminals 1 | . 1 . Fabricators . | . . . Repair Stations . | . . . Recycling Units . | . . . Scanalyzers . | . . . Garrison Access . | . . . Total Hacks 2 | . 2 . Successful 2 | . 2 . Failed . | . . . Catastrophic . | . . . Database Lockouts . | . . . Manual 1 | . 1 . Terminals 2 | . 2 . Fabricators . | . . . Repair Stations . | . . . Recycling Units . | . . . Scanalyzers . | . . . Garrison Access . | . . . Terminal Hacks 1 | . 1 . Locate Traps 1 | . 1 . Fabricator Hacks . | . . . Repair Station Hacks . | . . . Recycling Unit Hacks . | . . . Scanalyzer . | . . . Garrison Access Hacks . | . . . Unauthorized Hacks 1 | . 1 . Terminals 1 | . 1 . Botnet 1 | . 1 . Fabricators . | . . . Repair Stations . | . . . Recycling Units . | . . . Scanalyzers . | . . . Garrison Access . | . . . Data Cores Recovered . | . . . Used . | . . . Hacking Detections 1 | . 1 . Full Trace Events . | . . . Feedback Events . | . . . Feedback Blocked . | . . . Robot Schematics Acquired . | . . . Robots Built . | . . . Authchips . | . . . Time . | . . . Total Robot Build Rating . | . . . Part Schematics Acquired . | . . . Parts Built . | . . . Authchips . | . . . Time . | . . . Total Part Build Rating . | . . . Parts Repaired . | . . . Time . | . . . Parts Recycled . | . . . Recycled Matter . | . . . Retrieved Matter . | . . . Retrieved Components . | . . . Parts Scanalyzed . | . . . Part Schematics Acquired . | . . . Parts Damaged . | . . . Bothacking | -11 -10 -10 ------------ Run | Yrd Mat Sub Used RIF Installer . | . . . Robots Hacked . | . . . Non-combat . | . . . Combat . | . . . Robot Hacks Applied . | . . . Relay Couplers Released . | . . . Fabnet Peak Effective % . | . . . Robots Rewired . | . . . Allies Hacked . | . . . Hacks Repelled . | . . . Allies | -11 -10 -10 -------- Run | Yrd Mat Sub Total Allies . | . . . Largest Group . | . . . Highest-Rated Group . | . . . Highest-Rated Ally . | . . . Total Orders . | . . . Ally Attacks . | . . . Total Damage . | . . . Kills . | . . . Allies Corrupted . | . . . Allies Melted . | . . . Intel | -11 -10 -10 ------- Run | Yrd Mat Sub Robot Analysis Total . | . . . Derelict Logs Recovered . | . . . Drone Launches . | . . . Drone Recoveries . | . . . Exploration | -11 -10 -10 ------------- Run | Yrd Mat Sub Turns Passed 1337 | 113 462 762 Spaces Moved 577 | 51 130 396 Core 3 | 2 . 1 Treads 574 | 49 130 395 Legs . | . . . Wheels . | . . . Hover . | . . . Flight . | . . . Fastest Speed 50 | 50 160 160 Average Speed 159 | 155 160 160 Slowest Speed 200 | 160 160 200 Overloaded Moves . | . . . Propulsion Burnouts . | . . . Robots Hopped . | . . . Cave-ins Triggered . | . . . Exploration Rate (%) 16 | 4 21 23 Regions Visited 2 Branch Regions 1 Pre-discovered Areas . | . . . Known Exits Taken . | . . . Unknown Exits Taken 2 | 1 1 . Scrap Searched . | . . . Spaces Dug 8 | . 4 4 Terrain Destroyed 8 | . 4 4 Melee 8 | . 4 4 Projectile . | . . . AOE . | . . . Terrain Rammed . | . . . Walls Destroyed . | . . . Machines Disabled . | . . . Actions | -11 -10 -10 --------- Run | Yrd Mat Sub Total 872 | 75 345 452 Wait 215 | 13 191 11 Move 575 | 50 129 396 Hop . | . . . Pick Up 5 | 1 2 2 Fast Attach 8 | 7 . 1 Attach . | . . . Detach . | . . . Swap 1 | . 1 . Drop 1 | . . 1 Fire 6 | 4 2 . Melee 61 | . 20 41 Ram . | . . . Kick . | . . . Crush . | . . . Escape Stasis . | . . . Rewire . | . . . Trap . | . . . Miscellaneous . | . . . Route ------- -11/Scrapyard -10/Materials -10/Subcaves (discovered 1 exit: [*Mat]) History --------- Turn | Location | Event 9 | -11/Scrapyard | Discovered new exit (range 15) 114 | -11/Scrapyard | Entered Materials 315 | -10/Materials | Build established: Mutant 533 | -10/Materials | Discovered new exit (range 6) 576 | -10/Materials | Entered Subcaves 596 | -10/Subcaves | A swath of the cavern ceiling suddenly collapsed 687 | -10/Subcaves | Discovered new exit (range 9) 825 | -10/Subcaves | Core integrity fell below 50% 1136 | -10/Subcaves | A swath of the cavern ceiling suddenly collapsed 1337 | -10/Subcaves | Core integrity fell below 20% 1338 | -10/Subcaves | Destroyed by 1A-17R(R) with Subdweller Machine Gun Last Messages --------------- 00839_ Destroyed Sub. Power Source. 00839_ IC-OQA(R) system corrupted by crushing effect. 00840_ IC-OQA(R) system terminally corrupted. 00842_ Acquired 39 matter. A swath of the cavern ceiling suddenly collapses. 01151_ Lgt. Assault Rifle destroyed. 01157_ VJ-Q7Q(R) knocked back. 01161_ VJ-Q7Q(R) destroyed. 01164_ Acquired 15 matter. 01166_ Subatomizers dissect the Sub. Monowheel. 01167_ Dropped Ion Engine. 01168_ Acquired Sub. Power Source. 01169_ Acquired 10 matter. 01172_ Acquired Sub. Monowheel. 01175_ Acquired Scrap Shield Fragment. 01322_ Lgt. Treads destroyed. 01334_ Sub. Power Source destroyed. 01335_ 1A-17R(R) knocked back. Map ----- +----------------------------------------------------+ | ??????????????????## ???## ####?????# | | ??????????????????# ## ## ####??# | | ??????????????????# ##?## | | ??????????????????#### ##?## # | | ?????????????????????## #??## # | | ??????????????????????# ## #???# # | | ?????????????????????# #?## ##??# | | ??????????????????? ??## ##?## | | ?????????????????? ###??# #??#### | | ?????????????????? #?????## #????## | | ??????????????????# ???????## #???## | | ??????????????????? ###????## ##?### | | ??????????????????? ##### ####?# ##??# | | ?????????????????????????# #?# #???# | | ?????????????????????????# #?# ##### | | ???????????????????????### ### ##### | | ??????????????????????## ## ##### | | ??????????????????##### | | ???????????? ## # ####### | | ??????????????# """ #?????? | | ??????????????## # "# # #### #?????? | | ???????????????#?####### #??# #?????? | | ???????????????????????## ### ### #?????? | | ????????????????????????# R#?### ## ##????? | | ????????????????????????# R#???# # #????? | | ???????????????????????##@ ##### # #??### | | ??????????????????????## ### ### ##?# | | ??????????????????????# ##?####?#### #?# | | ??????????????????????# #####??????????## ### | | ??????????????????????# #???###????###??## ## | | ?????????????????????## #####"##?###"##??# | | ????????????????????## ##%""#?#"##"#??# | | ????????????????????# """#####""##??## | | ????????????????????#### ##"#""""###????## | | ???????????????????????## #""# ###"#"#?????## | | ????????????????????????# "###""##"" ##??????## | | ????????????????????????## # ####""#"#??######### | | ?????????????????????????##""#####"## ####" ## | | ??????????????????????????# "#???## #"##""" | | ??????????????????????????####????###""##"#" | | ????????????????????????????????????#"""""" | | ????????????????????????????????????#""###" | | ????????????????????????????????????##"#"" | | ????????????????????????????????????##"## | | ????????????????????????????????????# " # | | ????????????????????????????????????## ## | | ?????????????????????????????????????# ## #####? | | ?????????????????????????????????????# #####????? | | ?????????????????????????????????????# #????????? | | ?????????????????????????????????????#"##????????? | +----------------------------------------------------+ Best States ------------- Heat Dissipation 25 Energy Generation 15 Energy Capacity 250 Matter Stores 300 Matter Capacity 300 Sight Range 16 Terrain Scan Density 10 Evasion (%) 40 Recoil Reduction 2 Item Schematics ----------------- None Robot Schematics ------------------ None Fabricated ------------ Nothing Alien Tech Used ----------------- None Achievements -------------- None Challenges ------------ None Game ------ Seed GunLinkedNeutralizer Manual? 0 Play Time 00:08:46 Cumulative 278.9 hours Start 2024.06.24 @ 16:49:49 End 2024.06.24 @ 16:55:25 Sessions 1 Manual Loads 0 Difficulty Rogue Special Mode None Game No. 268 Rogue 263 Adventurer 5 Explorer 0 Win Type - Total 4 Types 3/0/0/1/0/0/0/0/0 Lore% 67 Gallery% 83 Achievement% 64 Wizard Run 0 Options --------- Layout 2 ASCII 0 Keyboard 0 Movement Mouse Keybinds 0 Fullscreen 1 Font 24/Terminus Map View 50x44 Zoom Use 0% Tactical HUD 1 Map Filters NONE Filters NONE Steam 1 RUN: 54cb3059-9f18-4900-b4f3-9c4fc93d0d24